[Event "FIDE WY-U16 Olympiad 2022"]
[Site "Nakhchivan"]
[Date "2022.10.05"]
[Round "4.10"]
[White "Kiriella, K G T S D"]
[Black "Abdullabayli, Rajab"]
[Result "1/2-1/2"]
[ECO "B28"]
[WhiteElo "1907"]
[BlackElo "1547"]
[Annotator "TA"]
[PlyCount "63"]
[EventDate "2022.10.02"]
[EventType "team-tourn"]
[EventCountry "AZE"]
[SourceTitle "playchess.com"]
[Source "ChessBase"]
[SourceQuality "1"]
[WhiteTeam "Sri Lanka"]
[BlackTeam "Azerbaijan"]
[WhiteTeamCountry "SRI"]
[BlackTeamCountry "AZE"]
[TimeControl "40/5400+30:1800+30"]

{[%evp 9,63,37,54,55,133,41,78,87,80,89,80,88,129,137,140,128,145,106,119,82,85,58,60,54,99,103,89,95,88,92,122,101,104,103,183,90,85,82,79,83,103,101,135,104,117,100,95,95,99,106,96,58,68,0,0,-4]} 1. e4 {[%emt 0:00:03]} c5 {[%emt 0:00:04]} 2. Nf3 {[%emt 0:00:04]} a6 {[%emt 0:00:04]} 3. g3 {[%emt 0:00:09]} b6 {[%emt 0:01:28]} 4. Bg2 {[%emt 0:00:55]} Bb7 {[%emt 0:00:06]} 5. Nc3 {[%emt 0:00:41]} e6 {[%emt 0:00:55]} 6. d4 {[%emt 0:01:22] [#] B28: Sicilian: 2 Nf3 a6 (O'Kelly Variation).} Nf6 $146 {[%emt 0:01:43]} (6... cxd4 $14 7. Nxd4 (7. Qxd4 Nc6 $14) 7... d6) ({Predecessor:} 6... cxd4 7. Nxd4 Ne7 8. O-O Nec6 9. Be3 Be7 10. f4 O-O 11. Kh1 b5 12. a3 d6 {1-0 (51) Chigaev,M (2588)-Barria Zuniga,D (2341) Chess.com INT 2020}) 7. Bg5 {[%emt 0:10:18]} (7. d5 $16) 7... Be7 {[%emt 0:03:38]} 8. Bxf6 {[%emt 0:04:33] White is better.} Bxf6 {[%emt 0:00:22]} 9. e5 {[%emt 0:00:41]} Be7 {[%emt 0:01:19] [#]} 10. d5 $1 {[%emt 0:00:05]} d6 {[%emt 0:00:50]} 11. dxe6 {[%emt 0:02:00]} fxe6 {[%emt 0:00:44]} 12. exd6 {[%emt 0:00:24]} Qxd6 {[%emt 0:03:21]} 13. Qxd6 {[%emt 0:00:42]} Bxd6 {[%emt 0:00:02] A strong pair of Bishops.} 14. O-O-O {[%emt 0:00:13]} Be7 {[%emt 0:02:52]} 15. Ne1 {[%emt 0:04:03][%cal Bf3e1,Be1g2,Bg2f4,Bf4e6][%mdl 32]} Bxg2 {[%emt 0:00:29]} 16. Nxg2 {[%emt 0:00:05]} O-O {[%emt 0:00:04]} 17. Ne4 {[%emt 0:01:00]} Nc6 {[%emt 0:00:37]} 18. Nf4 {[%emt 0:01:11]} Rf5 {[%emt 0:12:43]} 19. Rd7 {[%emt 0:15:44] Hoping for Rc7.} ({Worse is} 19. Nxe6 Re5 20. N6xc5 (20. Nc7 $2 Rc8 $19) 20... Bxc5 21. Nxc5 Rxc5 $17) 19... Rc8 {[%emt 0:12:42] Against Rc7} 20. Nd6 {[%emt 0:06:28] White has more active pieces.} Bxd6 {[%emt 0:00:52]} 21. Rxd6 {[%emt 0:00:03]} Rf6 {[%emt 0:05:45]} (21... Nb4 $16 {was necessary.}) 22. Rxe6 {[%emt 0:01:25]} (22. Rhd1 $18 {has better winning chances.}) 22... Rxe6 $16 {[%emt 0:00:08]} 23. Nxe6 $18 {[%emt 0:00:06][%mdl 4096] Endgame KRN-KRN} Re8 {[%emt 0:00:08] [#]} 24. Nf4 {[%emt 0:00:07]} Nd4 {[%emt 0:03:15]} 25. h4 {[%emt 0:03:01]} Kf7 {[%emt 0:04:10]} 26. Rf1 {[%emt 0:02:41]} Re5 {[%emt 0:03:24]} 27. Kd1 {[%emt 0:02:18]} c4 {[%emt 0:07:19]} 28. Re1 {[%emt 0:13:02]} Kf6 {[%emt 0:06:31]} 29. c3 {[%emt 0:02:23]} Nf3 {[%emt 0:00:07]} 30. Rxe5 {[%emt 0:00:05]} Kxe5 {[%emt 0:00:07]} 31. Ke2 {[%emt 0:00:04]} (31. Ng2 $14) 31... Nxh4 $1 $11 {[%emt 0:00:16]} 32. Nh3 {[%emt 0:03:45] Weighted Error Value: White=0.18 (very precise) /Black=0.19 (very precise)} 1/2-1/2

[Event "FIDE WY-U16 Olympiad 2022"]
[Site "Nakhchivan"]
[Date "2022.10.05"]
[Round "4.10"]
[White "Kirtadze, Anastasia"]
[Black "Begmuratov, Khumoyun"]
[Result "0-1"]
[ECO "C60"]
[WhiteElo "1814"]
[BlackElo "2367"]
[Annotator "TA"]
[PlyCount "98"]
[EventDate "2022.10.02"]
[EventType "team-tourn"]
[EventCountry "AZE"]
[SourceTitle "playchess.com"]
[Source "ChessBase"]
[SourceQuality "1"]
[WhiteTeam "Georgia"]
[BlackTeam "Uzbekistan"]
[WhiteTeamCountry "GEO"]
[BlackTeamCountry "UZB"]
[TimeControl "40/5400+30:1800+30"]

{[%evp 14,98,22,26,42,29,35,19,22,31,36,34,46,34,48,0,0,-35,71,65,71,54,131,135,127,63,64,0,42,0,44,-16,-27,-95,-101,-98,-95,-102,-89,-84,-65,-58,-6,-73,0,0,0,-56,-55,-55,-60,-127,-102,-272,-247,-395,-390,-433,-407,-503,-457,-472,-500,-487,-483,-475,-467,-660,-655,-609,-651,-796,-758,-902,-888,-1228,-1197,-1300,-1855,-1784,-1665,-2987,-2470,-2006,-1675,-3260,-2106]} 1. e4 {[%emt 0:00:02]} e5 {[%emt 0:00:19]} 2. Nf3 {[%emt 0:00:13]} Nc6 {[%emt 0:00:07]} 3. Bb5 {[%emt 0:00:06]} g6 {[%emt 0:01:13]} 4. O-O {[%emt 0:09:27]} Bg7 {[%emt 0:00:26]} 5. c3 {[%emt 0:00:56]} a6 {[%emt 0:03:33]} 6. Ba4 {[%emt 0:01:44]} d6 {[%emt 0:00:43]} 7. h3 {[%emt 0:04:26]} Bd7 {[%emt 0:00:20]} 8. d4 {[%emt 0:03:35]} Nge7 {[%emt 0:02:24][%cal Bg8e7,Be7c8,Bc8d6][%mdl 32] C76: Ruy Lopez: Deferred Steinitz: 5 c3 Bd7 6 d4 g6.} 9. dxe5 {[%emt 0:06:36] now supersedes 9.Be3.} dxe5 {[%emt 0:01:51] [#]} 10. b4 $146 {[%emt 0:04:34]} ({Predecessor:} 10. Bg5 f6 11. Be3 Be6 12. Qc2 O-O 13. Nbd2 Qc8 14. Rfd1 Rd8 15. a3 Bf8 16. b4 {0-1 (53) Rathnakaran,K (2316)-Mirzoev,A (2476) Ahmedabad 2022}) 10... O-O {[%emt 0:00:04] The position is equal.} 11. Bb3 {[%emt 0:00:16]} Nc8 {[%emt 0:17:33]} 12. Be3 {[%emt 0:13:17]} b6 {[%emt 0:07:00]} 13. Qc2 {[%emt 0:10:50]} Nd6 {[%emt 0:00:49]} 14. Rd1 {[%emt 0:01:29]} (14. Na3 $14) 14... a5 $11 {[%emt 0:11:20]} 15. Qd3 {[%emt 0:18:13][%cal Oe3b6]} Qb8 {[%emt 0:15:13]} (15... axb4 $15 {keeps the upper hand.} 16. a4 bxa3 17. Nxa3 Na5) 16. b5 $16 {[%emt 0:02:11]} Nd8 {[%emt 0:04:20]} 17. a4 {[%emt 0:00:46]} Kh8 {[%emt 0:04:21]} (17... Be6 $14 18. c4 N8b7) 18. Bd5 {[%emt 0:04:18]} N8b7 {[%emt 0:04:48]} 19. Qd2 {[%emt 0:07:38]} (19. Nbd2 $16) 19... Qe8 {[%emt 0:05:53]} 20. Na3 {[%emt 0:03:47]} ({Don't play} 20. Bxb7 Nxb7 21. c4 (21. Qxd7 Rd8 $17) 21... Be6 $11) (20. c4 $14) 20... Rd8 {[%emt 0:00:49]} 21. Qc2 {[%emt 0:02:14]} (21. Qa2 $5 {[%cal Ra3c4]}) 21... f5 {[%emt 0:01:51][%cal Bf7f5,Bf5f4][%mdl 32]} 22. Bg5 {[%emt 0:01:15]} ({White should play} 22. Bxb7 $14 Nxb7 23. Nc4) 22... Rb8 $11 {[%emt 0:00:18]} 23. Nd2 {[%emt 0:01:10] [#]} (23. Be3 $11) 23... h6 $1 $17 {[%emt 0:04:11]} 24. Bh4 {[%emt 0:00:18]} g5 {[%emt 0:00:18]} 25. Bg3 {[%emt 0:00:21]} f4 {[%emt 0:00:01]} 26. Bh2 {[%emt 0:00:15]} Be6 {[%emt 0:00:37]} 27. Nac4 {[%emt 0:02:33]} Rd8 {[%emt 0:02:13]} (27... h5 $15) 28. f3 {[%emt 0:01:02]} (28. Nxd6 $11 Nxd6 29. c4) 28... Nc5 {[%emt 0:00:28]} ({Black should try} 28... Nxc4 $17 29. Nxc4 Bxd5 30. exd5 Qf7) 29. Nxd6 $11 {[%emt 0:00:17]} Rxd6 {[%emt 0:00:18]} ({But not} 29... cxd6 30. Nc4 $16) 30. Nc4 {[%emt 0:00:08]} (30. c4 $11) 30... Rd8 $36 {[%emt 0:00:14][%mdl 2048] Black has good play.} 31. Kh1 {[%emt 0:01:02]} Bxd5 {[%emt 0:00:22]} 32. exd5 {[%emt 0:00:27]} (32. Rxd5 $15 Rxd5 33. exd5) 32... e4 $17 {[%emt 0:00:50]} 33. fxe4 $2 {[%emt 0:00:49] Now White is beyond hope.} (33. d6 $17 {keeps fighting.} exf3 34. dxc7) 33... Qxe4 $19 {[%emt 0:00:08]} 34. Na3 {[%emt 0:00:32]} (34. Qxe4 $142 Nxe4 35. Bg1) 34... Rfe8 {[%emt 0:00:46]} 35. Rac1 {[%emt 0:00:34]} Rxd5 {[%emt 0:00:29]} 36. c4 {[%emt 0:00:30]} Qxc2 {[%emt 0:00:13] Black is clearly winning.} 37. Nxc2 {[%emt 0:00:30]} Rxd1+ {[%emt 0:00:01]} 38. Rxd1 {[%emt 0:00:01]} Nxa4 {[%emt 0:00:01]} 39. Bg1 {[%emt 0:00:46]} Re2 {[%emt 0:00:52]} 40. Rd8+ {[%emt 0:00:37]} (40. Nd4 $142 Nb2 41. Rb1) 40... Kh7 {[%emt 0:00:11]} 41. Nd4 {[%emt 0:30:35]} Rd2 {[%emt 0:30:11]} 42. Rd7 {[%emt 0:00:31]} Kg6 {[%emt 0:00:07]} 43. h4 {[%emt 0:00:00]} gxh4 {[%emt 0:00:00] Threatens to win with ...Nc3.} 44. Rd5 {[%emt 0:00:00]} Nc3 {[%emt 0:00:00]} 45. Nf3 {[%emt 0:00:00]} Rxd5 {[%emt 0:00:00]} 46. cxd5 {[%emt 0:00:00]} Nxd5 {[%emt 0:00:00] [#] Hoping for ...a4.} 47. Nxh4+ {[%emt 0:00:00]} Kh5 {[%emt 0:00:00]} 48. Nf5 {[%emt 0:00:00]} Be5 {[%emt 0:00:00] aiming for ...a4.} 49. Bd4 {[%emt 0:00:00]} Kg5 {[%emt 0:00:00] Weighted Error Value: White=0.67/Black=0.15 (very precise)} 0-1

[Event "FIDE WY-U16 Olympiad 2022"]
[Site "Nakhchivan"]
[Date "2022.10.05"]
[Round "4.11"]
[White "Suyarov, Mukhammadzokhid"]
[Black "Safarov, Deniel"]
[Result "1-0"]
[ECO "A45"]
[WhiteElo "2287"]
[BlackElo "2032"]
[Annotator "TA"]
[PlyCount "120"]
[EventDate "2022.10.02"]
[EventType "team-tourn"]
[EventCountry "AZE"]
[SourceTitle "playchess.com"]
[Source "ChessBase"]
[SourceQuality "1"]
[WhiteTeam "Uzbekistan"]
[BlackTeam "Georgia"]
[WhiteTeamCountry "UZB"]
[BlackTeamCountry "GEO"]
[TimeControl "40/5400+30:1800+30"]

{[%evp 9,120,0,0,0,0,0,0,0,0,0,0,0,0,0,0,0,0,0,0,-3,0,-20,-20,-20,-8,-14,-17,-11,-4,-15,-4,-6,-4,-4,-4,-11,-15,-21,-22,-88,-109,-105,-82,-106,-98,-94,-72,-66,-76,-70,-67,-60,0,-1,0,0,0,0,0,-2,-2,-65,-66,-76,-58,-58,0,0,0,0,0,-35,-21,-27,0,2,8,1,8,0,0,0,44,8,149,148,1110,1109,1066,0,0,0,0,0,0,0,1004,810,5612,5890,5434,2042,5069,5069,7750,5828,3644,3552,29979,29980,29973,29965,2065]} 1. d4 {[%emt 0:00:01]} Nf6 {[%emt 0:00:05]} 2. Nc3 {[%emt 0:00:10]} d5 {[%emt 0:00:02]} 3. Bf4 {[%emt 0:00:07]} c5 {[%emt 0:00:05]} 4. e4 {[%emt 0:00:48]} Nxe4 {[%emt 0:00:03]} 5. Nxe4 {[%emt 0:00:12]} dxe4 {[%emt 0:00:03]} 6. dxc5 {[%emt 0:00:08] D00: 1 d4 d5: Unusual lines.} Qa5+ {[%emt 0:00:01]} 7. c3 {[%emt 0:00:01]} Qxc5 {[%emt 0:00:08]} 8. Qa4+ {[%emt 0:00:09] The position is equal.} Nc6 {[%emt 0:00:01]} 9. Qxe4 {[%emt 0:00:08]} g6 {[%emt 0:00:15]} 10. Nf3 {[%emt 0:01:17]} Bg7 {[%emt 0:00:15][%cal Og7c3]} 11. Qe3 {[%emt 0:01:07]} Qxe3+ {[%emt 0:00:01]} 12. Bxe3 {[%emt 0:00:01]} O-O {[%emt 0:00:09]} 13. O-O-O {[%emt 0:00:05]} Be6 {[%emt 0:00:01] [#]} 14. a3 $146 {[%emt 0:04:00]} ({Predecessor:} 14. Kb1 Rfd8 15. Be2 Bf5+ 16. Kc1 Rdc8 17. Nd4 Nxd4 18. Bxd4 Bh6+ 19. Be3 Bxe3+ 20. fxe3 {1-0 (59) Madaminov,M (2408)-Kuybokarov,T (2583) Abu Dhabi 2022}) 14... b6 {[%emt 0:04:46]} 15. Nd4 {[%emt 0:05:11]} Nxd4 {[%emt 0:14:36]} 16. Bxd4 {[%emt 0:00:03]} Rfd8 {[%emt 0:02:31]} 17. Be3 {[%emt 0:02:25]} Rxd1+ {[%emt 0:09:38]} 18. Kxd1 {[%emt 0:00:02]} Bb3+ {[%emt 0:00:01]} 19. Kc1 {[%emt 0:00:01]} Rd8 {[%emt 0:00:53][%csl Gb3][%cal Rd8d1] [#]} 20. Be2 {[%emt 0:00:02] Inhibits Rd1+.} e5 {[%emt 0:00:23]} 21. Bd1 {[%emt 0:14:05]} Bd5 {[%emt 0:09:48]} 22. Rg1 {[%emt 0:03:40]} f5 {[%emt 0:04:35][%cal Bf7f5,Bf5f4][%mdl 32]} 23. Bc2 {[%emt 0:09:55]} Bf6 {[%emt 0:07:01]} 24. g4 {[%emt 0:03:40]} (24. g3 $11) 24... f4 $17 {[%emt 0:02:49]} 25. Bd2 {[%emt 0:00:01]} Kf7 {[%emt 0:10:02]} 26. Re1 {[%emt 0:05:18][%cal Og4g5]} Re8 {[%emt 0:02:39]} 27. Be4 {[%emt 0:03:29]} Bxe4 {[%emt 0:01:31]} 28. Rxe4 {[%emt 0:00:02][%mdl 4096] Endgame KRB-KRB} h5 {[%emt 0:00:01]} 29. h3 {[%emt 0:16:52]} hxg4 {[%emt 0:04:34]} 30. hxg4 {[%emt 0:00:02]} g5 {[%emt 0:01:04]} (30... Rh8 $1 $15) 31. Kd1 {[%emt 0:10:35]} Rh8 {[%emt 0:04:50]} 32. Ke2 {[%emt 0:00:09]} Rh4 {[%emt 0:00:45]} 33. Kf3 {[%emt 0:00:09]} Rh3+ {[%emt 0:00:02]} 34. Ke2 {[%emt 0:00:14]} Ke6 {[%emt 0:10:18]} 35. Ra4 {[%emt 0:00:52]} (35. c4 $1 $11) 35... a5 $15 {[%emt 0:03:24]} 36. b4 {[%emt 0:03:04]} Bd8 {[%emt 0:01:09] Strongly threatening ...b5.} 37. c4 {[%emt 0:03:16][%cal Rb4a5]} Rb3 {[%emt 0:08:07]} (37... axb4 $15 38. axb4 e4) 38. bxa5 $11 {[%emt 0:02:24] Black must now prevent a6.} f3+ {[%emt 0:00:35]} 39. Kd1 {[%emt 0:00:13]} bxa5 {[%emt 0:00:13]} 40. Kc2 {[%emt 0:02:15] Prevents Rb2+.} Rb7 {[%emt 0:00:01] ...Bb6 is the strong threat.} 41. Be3 {[%emt 0:31:17]} e4 {[%emt 0:31:39]} 42. c5 {[%emt 0:00:31]} Bf6 {[%emt 0:00:00]} 43. Rxe4+ {[%emt 0:00:00]} Kd5 {[%emt 0:00:00]} 44. Ra4 {[%emt 0:00:00]} Rb2+ {[%emt 0:00:00]} 45. Kc1 Re2 {[%emt 0:00:00][%cal Oe2e3] aiming for ...Rxe3!} 46. Kd1 {[%emt 0:00:00] White wants to play c6.} (46. c6 $5 Kxc6 47. Rxa5 $16) 46... Ra2 {[%emt 0:00:00]} (46... Be5 $1 $11 {keeps the balance.}) 47. Rxa5 $16 {[%emt 0:00:00]} Kc4 $2 {[%emt 0:00:00][%mdl 8192] [#]} (47... Bc3 $16 48. Rb5 Rxa3) 48. c6 $1 $18 {[%emt 0:00:00]} Ra1+ {[%emt 0:00:00]} 49. Kc2 $2 {[%emt 0:00:00]} ({Only move:} 49. Bc1 $18 {Intending c7 and mate.} Bd8 50. Ra7) 49... Ra2+ $11 {[%emt 0:00:00]} 50. Kb1 {[%emt 0:00:00]} Ra1+ {[%emt 0:00:00]} 51. Kc2 {[%emt 0:00:00][%csl Ge3][%cal Ra5c5]} Ra2+ {[%emt 0:00:00]} 52. Kd1 $2 {[%emt 0:00:00][%mdl 8192]} (52. Kb1 $11 Rb2+ 53. Kc1) 52... Ra1+ $18 {[%emt 0:00:00]} 53. Bc1 {[%emt 0:00:00] Threatening mate with c7.} Bb2 {[%emt 0:00:00]} 54. Kc2 {[%emt 0:00:00]} Rxc1+ {[%emt 0:00:00]} 55. Kxb2 {[%emt 0:00:00] KR-KR} Re1 {[%emt 0:00:00]} 56. c7 {[%emt 0:00:00]} Re2+ {[%emt 0:00:00]} 57. Kc1 {[%emt 0:00:00]} Re8 {[%emt 0:00:00]} 58. Rxg5 {[%emt 0:00:00] White wants to mate with Rf5.} Re1+ {[%emt 0:04:14]} 59. Kd2 {[%emt 0:00:00]} Re2+ {[%emt 0:00:02]} 60. Kd1 {[%emt 0:00:00]} Re8 {[%emt 0:00:01] Weighted Error Value: White=0.18 (very precise) /Black=0.12 (very precise)} 1-0

[Event "FIDE WY-U16 Olympiad 2022"]
[Site "Nakhchivan"]
[Date "2022.10.05"]
[Round "4.11"]
[White "Humbatova, Nazli"]
[Black "Nabil Nazar, Mohamed"]
[Result "0-1"]
[ECO "B40"]
[WhiteElo "1777"]
[BlackElo "1987"]
[Annotator "TA"]
[PlyCount "90"]
[EventDate "2022.10.02"]
[EventType "team-tourn"]
[EventCountry "AZE"]
[SourceTitle "playchess.com"]
[Source "ChessBase"]
[SourceQuality "1"]
[WhiteTeam "Azerbaijan"]
[BlackTeam "Sri Lanka"]
[WhiteTeamCountry "AZE"]
[BlackTeamCountry "SRI"]
[TimeControl "40/5400+30:1800+30"]

{[%evp 26,90,33,15,52,0,41,44,40,20,23,21,8,2,0,0,4,4,49,8,2,0,0,-131,-154,-325,-325,-429,-440,-565,-535,-29993,-664,-697,-507,-514,-518,-599,-593,-431,-312,-388,-322,-324,-197,-218,-235,-263,-279,-285,-322,-319,-307,-275,-191,-427,-422,-1063,-1056,-900,-864,-5289,-5181,-29984,-29985,-29984,-29983]} 1. e4 {[%emt 0:00:02]} c5 {[%emt 0:00:12]} 2. Nf3 {[%emt 0:00:09]} e6 {[%emt 0:00:12]} 3. d4 {[%emt 0:00:06]} cxd4 {[%emt 0:00:05]} 4. Nxd4 {[%emt 0:00:09]} Nf6 {[%emt 0:00:08]} 5. Nc3 {[%emt 0:00:53]} Nc6 {[%emt 0:01:36]} 6. Ndb5 {[%emt 0:02:23]} Bb4 {[%emt 0:03:13]} 7. a3 {[%emt 0:03:56]} Bxc3+ {[%emt 0:00:02]} 8. Nxc3 {[%emt 0:00:06]} d5 {[%emt 0:00:01]} 9. exd5 {[%emt 0:10:09]} exd5 {[%emt 0:00:02]} 10. Bd3 {[%emt 0:06:04]} O-O {[%emt 0:00:02]} 11. O-O {[%emt 0:00:27]} d4 {[%emt 0:00:01]} 12. Ne2 {[%emt 0:00:27]} Bg4 {[%emt 0:02:29]} 13. f3 {[%emt 0:00:13] 13.Bg5 injects fresh life into this line.} Bh5 {[%emt 0:00:01]} 14. Bg5 {[%emt 0:04:33]} Qd6 {[%emt 0:05:56] B45: Sicilian Four Knights.} 15. c4 {[%emt 0:15:01]} (15. Bh4 $14) 15... Rad8 {[%emt 0:10:40]} 16. Nf4 {[%emt 0:15:18]} Bg6 {[%emt 0:15:02] [#] White is slightly better.} 17. Bxg6 $146 {[%emt 0:00:40]} ({Predecessor:} 17. Nxg6 hxg6 18. Re1 Rfe8 19. Qd2 Ne5 20. Bf4 Nh5 21. Bxe5 Rxe5 22. Rxe5 Qxe5 23. Re1 {1-0 (47) Csiba,D (2370)-Partys,P (2039) Banska Stiavnica 2012}) 17... hxg6 {[%emt 0:01:03]} 18. Nd3 $1 {[%emt 0:00:19]} Rfe8 {[%emt 0:01:14]} 19. Bf4 {[%emt 0:10:23]} Qe6 {[%emt 0:02:35]} 20. Qc2 {[%emt 0:06:23]} Nh5 {[%emt 0:04:49]} 21. Bg5 {[%emt 0:00:46]} f6 {[%emt 0:01:02]} 22. Bd2 {[%emt 0:00:10] Strongly threatening g4.} (22. Rae1 $5 {[%cal Re1e6]} Qf7 23. Bd2 $14) 22... Ne5 {[%emt 0:04:14]} 23. Rac1 {[%emt 0:09:20]} Qf5 $36 {[%emt 0:04:05][%mdl 2048] Black is pushing.} 24. Nb4 {[%emt 0:05:03]} (24. Nxe5 $1 $11 fxe5 25. Qb3) 24... d3 $17 {[%emt 0:02:35]} 25. Qb3 {[%emt 0:01:27] Loses the game.} (25. Qc3 $17) 25... Nf4 $19 {[%emt 0:01:05]} 26. Bxf4 {[%emt 0:00:47]} Qxf4 {[%emt 0:00:02]} 27. c5+ {[%emt 0:02:28]} Kh7 {[%emt 0:00:28][%cal Oe5f3]} 28. Kh1 {[%emt 0:00:18] [#]} d2 {[%emt 0:02:04]} (28... Nxf3 $142 $1 {[%mdl 512]} 29. g3 Re2 $1 30. Rc2 dxc2 31. Qxc2 Rxc2 32. Nxc2 Rd2 $1 33. Rxf3 Qxf3+ 34. Kg1 Qg2#) 29. Rcd1 {[%emt 0:00:07]} Nc4 {[%emt 0:00:47]} 30. Nc2 {[%emt 0:01:23]} Ne3 {[%emt 0:07:40]} 31. Nxe3 {[%emt 0:00:31]} Rxe3 {[%emt 0:00:02]} ({Stronger than} 31... Qxe3 32. Qxe3 Rxe3 33. Kg1 $17) 32. Qxb7 {[%emt 0:00:38]} Qc4 {[%emt 0:00:01][%cal Oc4f1]} 33. Rg1 {[%emt 0:00:41]} Qc2 {[%emt 0:07:59][%cal Oc2d1] ( -> ...Qxd1!)} 34. Qb4 {[%emt 0:00:09]} (34. c6 {[#] leads to mate.} Qxd1 $3 {[%mdl 512]} 35. Qb4 Qxg1+ $3 {[%mdl 512]} 36. Kxg1 d1=Q+ 37. Kf2 Rd2+) 34... Rb3 {[%emt 0:01:15][%cal Be3b3,Bb3b2,Bb2c2,Bc2c1,Bc1d1,Bd1e1][%mdl 32]} 35. Qa5 {[%emt 0:01:12]} Rd5 {[%emt 0:02:15]} 36. Qa4 {[%emt 0:02:41]} Rxb2 {[%emt 0:05:10][%mdl 64] Discovered Attack} 37. Qh4+ {[%emt 0:00:41]} Kg8 {[%emt 0:00:11]} 38. Qg4 {[%emt 0:00:13] Hoping for Qe6+.} Qxc5 {[%emt 0:04:14]} ({Wrong is} 38... Kf7 $2 39. Qc8 $19) 39. Qxg6 {[%emt 0:00:15]} Qe3 {[%emt 0:00:18] Prevents Qe8+. Active counter play!} 40. Qg4 $2 {[%emt 0:01:13]} (40. Qe4 Qxe4 41. fxe4) 40... Rc2 {[%emt 0:00:49] Threatens to win with ...Rc1.} 41. Qa4 {[%emt 0:32:29]} (41. Qe4 $142 Qxe4 42. fxe4) 41... Rc1 {[%emt 0:33:20]} 42. h3 {[%emt 0:00:00]} Rd4 {[%emt 0:00:00]} 43. Qa5 {[%emt 0:00:00] [#]} Qxg1+ $3 {[%emt 0:00:00][%mdl 512]} 44. Kxg1 {[%emt 0:00:00]} (44. Rxg1 Rxg1+) 44... Rxd1+ {[%emt 0:00:00]} 45. Kh2 {[%emt 0:00:00]} Re1 {[%emt 0:00:00] Weighted Error Value: White=0.86/Black=0.44} 0-1